bitfinex-derivatives/quotes_SOLF0:USTF0_20241127
["timestamp","ask_amount","ask_price","bid_price","bid_amount"]
[1732719663337,2.0879,239.39,239.3,2.0886]
[1732719663731,10.03120196,239.41,239.25,10.03120196]
[1732719663936,10.03120196,239.41,239.28,2.0888]
[1732719664239,10.03120196,239.41,239.22,2.96]
[1732719664240,10.03120196,239.38,239.22,10.03120196]
[1732719664536,2.0881,239.36,239.26,2.089]
[1732719664730,10.03120196,239.35,239.19,10.03120196]
[1732719665228,10.03120196,239.35,239.24,2.0891]
[1732719665438,10.03120196,239.28,239.18,1.3193]
[1732719665639,4.2304,239.27,239.18,1.3193]
[1732719666141,4.2304,239.27,239.2,0.49861]
[1732719666639,6.3194,239.27,239.2,0.49861]
[1732719666937,10.03120196,239.25,239.2,0.49861]
[1732719667142,2.0893,239.23,239.2,0.49861]
[1732719667339,10.03120196,239.25,239.1,1.2235]
[1732719667737,2.0895,239.2,239.13,2.0901]
[1732719668036,2.96,239.2,239.05,10.03120196]
[1732719668239,1.3157,239.19,239.05,10.03120196]
[1732719668438,1.3157,239.19,239.12,2.0901]
[1732719669142,3.4053,239.19,239.12,2.0901]
[1732719669641,1.3157,239.19,239.12,2.0901]
[1732719669838,1.3157,239.19,239.12,2.0902]
[1732719670239,1.3157,239.19,239.05,10.03120196]
[1732719670440,1.3157,239.19,239.13,2.0901]
[1732719670739,1.3157,239.19,239.08,10.03120196]
[1732719671633,1.3157,239.19,239.16,2.0898]
[1732719672346,1.3157,239.19,239.14,2.09]
[1732719672842,3.4053,239.19,239.05,10.03120196]
[1732719673244,10.03120196,239.18,239.04,1.2235]
[1732719673436,2.09,239.15,239.04,1.2235]
[1732719673638,2.96,239.14,238.95,1.2856]
[1732719673833,2.0903,239.11,239.03,2.091]
[1732719674032,10.03120196,239.12,239.03,2.091]
[1732719674239,2.96,239.12,239.01,10.03120196]
[1732719674545,2.96,239.12,238.97,10.03120196]
[1732719674733,1.2675,239.14,238.96,1.2536]
[1732719674939,1.2675,239.14,239.03,10.03120196]
[1732719675139,1.2675,239.14,239.09,10.03120196]
[1732719675334,2.96,239.23,239.12,10.03120196]
[1732719675736,2.96,239.24,239.12,10.03120196]
[1732719675936,2.96,239.24,239.09,10.03120196]
[1732719677242,2.0893,239.23,239.15,2.0899]
[1732719677449,10.03120196,239.23,239.08,1.2536]
[1732719677839,10.03120196,239.2,239.08,1.2536]
[1732719678041,10.03120196,239.17,239.03,10.03120196]
[1732719678241,2.94,239.16,238.98,1.289]
[1732719678441,2.94,239.16,238.99,10.03120196]
[1732719678641,2.4145,239.15,239.06,10.03120196]
[1732719679738,2.94,239.16,239.06,10.03120196]
[1732719679943,2.94,239.16,239.03,10.03120196]
[1732719680143,2.94,239.16,239.11,2.0903]
[1732719680343,2.94,239.16,239.03,10.03120196]
[1732719680651,2.94,239.25,239.18,2.0897]
[1732719680838,2.94,239.24,239.18,2.0897]
[1732719681042,2.94,239.24,239.1,1.2687]
[1732719681043,10.03120196,239.29,239.12,10.03120196]
[1732719681239,2.94,239.28,239.11,11.23990196]
[1732719682046,10.03120196,239.29,239.11,11.23990196]
[1732719682244,10.03120196,239.26,239.11,11.23990196]
[1732719682549,10.03120196,239.26,239.18,2.0897]
[1732719682748,10.03120196,239.26,239.11,11.23990196]
[1732719683042,2.0892,239.24,239.17,2.0898]
[1732719683650,10.03120196,239.26,239.11,1.2087]
[1732719683850,10.03120196,239.23,239.11,1.2087]
[1732719684149,10.03120196,239.23,239.14,2.09]
[1732719684341,2.0894,239.22,239.14,2.09]
[1732719684648,2.94,239.21,239.14,2.09]
[1732719684847,4.1833,239.21,239.14,2.09]
[1732719685052,10.03120196,239.17,239.02,2.5015]
[1732719685348,10.03120196,239.14,239.02,2.5015]
[1732719685549,2.94,239.13,239.08,2.0905]
[1732719686146,2.94,239.13,239.02,2.5015]
[1732719686454,2.94,239.13,239.0,1.312]
[1732719686745,2.94,239.13,238.98,29.67853677]
[1732719686746,16.1273657,239.11,238.98,29.67853677]
[1732719687249,1.2157,239.1,238.98,29.67853677]
[1732719687444,16.1273657,239.06,238.93,1.2008]
[1732719687645,2.94,239.05,238.93,1.2008]
[1732719687847,2.94,239.05,238.93,17.3281657]
[1732719688045,2.94,239.07,239.05,2.0908]
[1732719688447,2.94,239.07,238.93,17.3281657]
[1732719688751,2.94,239.07,239.03,2.0909]
[1732719688946,2.94,239.07,238.93,1.2008]
[1732719689143,19.0673657,239.07,238.93,1.2008]
[1732719689342,2.94,239.07,238.93,1.2008]
[1732719689747,2.0909,239.05,238.99,2.0914]
[1732719689942,2.0909,239.05,238.93,1.2008]
[1732719690144,2.94,239.07,238.93,1.2008]
[1732719690348,2.94,239.07,239.03,2.091]
[1732719690549,2.5099,239.1,238.93,17.3281657]
[1732719691052,2.94,239.12,238.97,16.1273657]
[1732719691552,2.94,239.18,239.01,16.3400057]
[1732719691746,2.4381,239.2,239.05,16.1273657]
[1732719691953,2.94,239.26,239.09,16.1273657]
[1732719692156,2.94,239.26,239.1,2.94]
[1732719692451,5.029,239.26,239.18,2.0896]
[1732719692647,5.029,239.26,239.11,1.1899]
[1732719692648,2.94,239.26,239.11,1.1899]
[1732719693052,2.0894,239.21,239.14,2.09]
[1732719693253,2.94,239.26,239.14,2.09]
[1732719693452,2.94,239.26,239.06,6.89563232]
[1732719693649,2.94,239.26,239.13,2.09]
[1732719693650,2.0894,239.21,239.13,2.09]
[1732719693849,2.94,239.26,239.07,5.66243232]
[1732719694043,2.94,239.26,239.08,4.91145067]
[1732719694250,2.0894,239.21,239.13,2.0901]
[1732719694647,2.0897,239.18,239.11,2.0902]
[1732719694850,2.0897,239.18,239.08,5.66243232]
[1732719694851,16.1273657,239.23,239.07,5.66243232]
[1732719695054,16.1273657,239.23,239.08,4.91404111]
[1732719695252,16.1273657,239.23,239.06,23.88292929]
[1732719695551,16.1273657,239.23,239.07,47.21895341]
[1732719695552,2.0896,239.2,239.07,47.21895341]
[1732719695753,2.0896,239.2,239.08,10.57602129]
[1732719695957,16.1273657,239.27,239.09,4.91396609]
[1732719696153,2.94,239.26,239.1,10.57639337]
[1732719696353,2.94,239.26,239.1,5.66243232]
[1732719696556,2.94,239.26,239.11,4.91407873]
[1732719696850,2.94,239.26,239.09,5.66243232]
[1732719697157,2.94,239.26,239.13,2.0901]
[1732719697455,16.1273657,239.23,239.09,5.66243232]
[1732719697648,16.1273657,239.19,239.07,5.66243232]
[1732719697849,2.94,239.18,239.06,1.2332]
[1732719698054,16.1273657,239.15,239.06,1.2332]
[1732719698551,16.1273657,239.15,239.02,1.2766]
[1732719698757,16.1273657,239.15,239.04,2.0909]
[1732719698949,16.1273657,239.15,239.02,1.2766]
[1732719699151,16.1273657,239.15,239.01,0.21264]
[1732719699351,2.0904,239.1,239.03,2.0909]
[1732719699746,2.595,239.18,239.04,4.93547165]
[1732719699951,2.595,239.18,239.08,5.66243232]
[1732719700152,2.595,239.18,239.07,5.66243232]
[1732719700853,2.595,239.18,239.08,4.93332679]
[1732719701066,2.595,239.18,239.07,5.66243232]
[1732719701256,2.595,239.18,239.06,5.66243232]
[1732719701456,2.595,239.18,239.05,22.64972929]
[1732719701656,2.0902,239.12,239.07,2.0906]
[1732719701857,16.1273657,239.15,239.05,5.66243232]
[1732719702255,16.1273657,239.15,239.04,22.64972929]
[1732719702460,16.1273657,239.15,239.05,10.59785443]
[1732719702759,2.0903,239.11,239.07,2.0907]
[1732719703354,2.0903,239.11,239.06,2.0907]
[1732719703555,2.0906,239.08,239.03,5.66243232]
[1732719703759,2.94,239.13,239.03,5.66243232]
[1732719703962,2.94,239.13,239.03,2.091]
[1732719704260,2.0905,239.09,239.03,2.091]
[1732719704761,2.0905,239.09,239.01,5.87507232]
[1732719704958,2.0905,239.09,239.02,10.59915549]
[1732719705256,2.94,239.13,239.03,4.93619179]
[1732719705459,2.94,239.13,239.02,5.66243232]
[1732719705655,2.94,239.13,239.06,2.0907]
[1732719705656,2.0904,239.11,239.06,2.0907]
[1732719705857,2.94,239.13,239.02,22.64972929]
[1732719706059,2.94,239.13,239.01,5.87507232]
[1732719706257,2.94,239.13,239.02,2.091]
[1732719707061,2.94,239.13,239.02,2.0911]
[1732719707459,16.1273657,239.11,239.01,0.21264]
[1732719707754,2.94,239.1,239.01,0.21264]
[1732719707957,2.0909,239.05,239.01,0.21264]
[1732719708163,2.0909,239.05,239.01,2.30374]
[1732719708663,2.0906,239.08,239.01,0.21264]
[1732719708956,2.94,239.1,239.01,0.21264]
[1732719710055,2.0911,239.03,239.01,0.21264]
[1732719710754,2.94,239.1,239.01,0.21264]
[1732719711759,2.0911,239.02,239.01,0.21264]
[1732719711966,16.1273657,239.07,239.01,0.21264]
[1732719712259,2.0911,239.03,238.98,2.0914]
[1732719712856,10.08491375,239.06,238.94,1.3122]
[1732719713057,10.08491375,239.09,238.94,1.3122]
[1732719713260,2.94,239.1,238.96,10.08491375]
[1732719713555,10.08491375,239.09,238.97,2.55411616]
[1732719713756,10.08491375,239.09,238.94,1.3122]
[1732719713963,10.08491375,239.09,238.95,2.55480156]
[1732719714163,2.0908,239.06,238.94,1.3122]
[1732719714563,10.08491375,239.09,238.99,2.0913]
[1732719714764,2.0908,239.06,238.99,2.0913]
[1732719715165,10.08491375,239.09,238.99,2.0913]
[1732719715959,2.0908,239.06,238.94,1.3122]
[1732719716260,10.08491375,239.09,238.94,1.3122]
[1732719716261,10.08491375,239.09,238.94,11.39711375]
[1732719716664,2.0907,239.06,238.98,2.0914]
[1732719716863,2.0907,239.06,238.94,11.39711375]
[1732719717457,2.0909,239.05,238.94,1.3122]
[1732719717657,10.08491375,239.06,238.94,1.3122]
[1732719717860,10.08491375,239.06,238.97,2.0915]
[1732719718164,10.08491375,239.06,238.94,1.3122]
[1732719718360,10.08491375,239.06,238.98,2.0914]
[1732719718564,10.08491375,239.06,238.94,1.3122]
[1732719719564,2.091,239.03,238.97,2.0914]
[1732719719760,10.08491375,239.06,238.97,2.0914]
[1732719720163,2.0911,239.02,238.97,2.0914]
[1732719720559,10.08491375,239.09,238.94,1.3122]
[1732719720763,2.94,239.1,238.95,10.08491375]
[1732719720965,2.08131381,239.2,238.98,10.08491375]
[1732719721163,10.08491375,239.16,239.01,10.08491375]
[1732719721458,10.08491375,239.13,238.98,10.08491375]
[1732719721665,10.08491375,239.13,239.04,2.0909]
[1732719721863,10.08491375,239.13,238.98,10.08491375]
[1732719722267,12.17511375,239.13,239.06,2.0907]
[1732719722562,10.08491375,239.1,238.95,13.02491375]
[1732719722759,2.0909,239.05,238.94,1.3122]
[1732719723169,2.94,239.06,238.94,1.3122]
[1732719723364,2.0903,239.11,238.96,10.08491375]
[1732719723759,2.94,239.12,238.96,10.08491375]
[1732719723958,5.0302,239.12,238.96,10.08491375]
[1732719724264,13.02491375,239.13,238.97,2.94]
[1732719724664,10.08491375,239.1,238.97,2.94]
[1732719724873,10.08491375,239.06,238.94,1.3122]
[1732719725668,13.02491375,239.06,238.94,1.3122]
[1732719725866,10.08491375,239.03,238.94,1.3122]
[1732719727070,10.08491375,239.0,238.94,1.3122]
[1732719727771,10.08491375,239.0,238.95,2.0916]
[1732719728268,2.0913,239.01,238.95,2.0916]
[1732719728665,16.14082772,239.04,238.95,2.0916]
[1732719728861,2.0913,239.0,238.94,1.3122]
[1732719729069,2.0913,239.0,238.94,3.404]
[1732719729271,2.0913,239.0,238.94,1.3122]
[1732719729569,16.14082772,239.04,238.95,2.0917]
[1732719729766,19.08082772,239.04,238.94,1.3122]
[1732719730266,5.0309,239.04,238.98,2.0914]
[1732719730471,1.3178,239.07,238.94,1.3122]
[1732719730765,2.94,239.1,238.94,4.2522]
[1732719730969,2.0907,239.07,238.94,4.2522]
[1732719732168,2.0907,239.07,239.01,2.0911]
[1732719732368,2.94,239.1,238.94,1.3122]
[1732719732369,16.14082772,239.04,238.94,1.3122]
[1732719732564,2.94,239.03,238.91,0.38552]
[1732719732766,5.5214,239.03,238.92,2.0919]
[1732719733577,5.5214,239.03,238.93,2.0919]
[1732719733875,5.5214,239.03,238.91,0.38552]
[1732719734066,2.0914,238.99,238.94,2.0918]
[1732719734467,2.0914,238.99,238.91,0.38552]
[1732719734468,2.0915,238.98,238.91,0.38552]
[1732719734669,16.14082772,239.0,238.91,2.47752]
[1732719734868,16.14082772,239.0,238.91,0.38552]
[1732719735272,16.14082772,239.0,238.91,2.47762]
[1732719735468,16.14082772,239.0,238.91,0.38552]
[1732719735673,2.0915,238.97,238.92,2.0919]
[1732719736072,16.14082772,239.0,238.91,0.38552]
[1732719736470,16.14082772,238.96,238.91,0.38552]
[1732719736677,2.0918,238.95,238.91,0.38552]
[1732719737374,19.08082772,238.96,238.91,0.38552]
[1732719737574,2.94,238.96,238.91,0.38552]
[1732719737774,2.5814,239.03,238.91,0.38552]
[1732719737982,2.94,239.1,238.92,16.14082772]
[1732719738175,2.94,239.1,238.96,16.14082772]
[1732719738681,2.4474,239.13,238.96,16.14082772]
[1732719739078,2.4474,239.13,238.95,2.94]
[1732719739276,16.14082772,239.1,238.95,2.94]
[1732719739481,2.0906,239.08,239.01,2.0911]
[1732719739689,16.14082772,239.1,238.93,2.54]
[1732719739982,2.4474,239.13,238.93,2.54]
[1732719739983,16.14082772,239.06,238.93,5.48]
[1732719740178,2.0909,239.05,238.96,2.0916]
[1732719740383,16.14082772,239.06,238.93,5.48]
[1732719740578,2.94,239.06,238.93,5.48]
[1732719741681,2.94,239.11,238.93,5.48]
[1732719741879,2.0905,239.09,238.93,8.03178612]
[1732719742077,2.94,239.11,238.93,5.48]
[1732719742280,2.94,239.11,238.93,2.54]
[1732719742779,16.14082772,239.07,238.93,2.54]
[1732719743584,2.0911,239.03,238.96,2.0916]
[1732719743779,16.14082772,239.07,238.96,2.0916]
[1732719743979,16.14082772,239.07,238.93,2.54]
[1732719744285,1.3033,239.1,238.93,2.54]
[1732719744686,2.4474,239.13,238.93,5.0996888]
[1732719744980,2.94,239.12,238.95,16.14082772]
[1732719745787,2.0907,239.07,239.01,2.0911]
[1732719746578,16.14082772,239.06,238.98,2.0914]
[1732719746885,16.14082772,239.1,238.93,1.2584]
[1732719747486,16.14082772,239.1,238.94,2.56139413]
[1732719747686,2.0906,239.09,238.93,1.2584]
[1732719747882,2.94,239.12,238.94,2.56101257]
[1732719748187,2.0907,239.06,238.93,1.2584]
[1732719748376,2.0907,239.06,238.94,2.56160589]
[1732719748575,2.94,239.12,238.93,1.2584]
[1732719748777,2.0906,239.08,238.94,2.56138612]
[1732719748979,2.94,239.12,238.95,2.56138612]
[1732719749183,2.94,239.12,238.93,1.2584]
[1732719749383,2.94,239.12,238.94,2.56224372]
[1732719749585,2.94,239.12,238.95,2.56224372]
[1732719749781,2.4474,239.13,238.96,2.56224372]
[1732719749986,2.4474,239.13,238.95,16.14082772]
[1732719750184,2.0907,239.06,239.0,2.0912]
[1732719750385,16.14082772,239.1,238.94,2.56277461]
[1732719750582,16.14082772,239.1,238.94,2.94]
[1732719750788,16.14082772,239.1,238.95,2.56305197]
[1732719750990,16.14082772,239.1,239.01,2.0911]
[1732719752189,2.0907,239.07,239.01,2.0911]
[1732719753685,2.0907,239.07,239.01,2.0912]
[1732719753885,2.0907,239.07,238.94,2.94]
[1732719754384,2.4474,239.13,238.95,18.70464176]
[1732719754580,1.209,239.13,238.96,2.56381404]
[1732719754784,1.2374,239.19,239.03,16.14082772]
[1732719754980,1.204,239.22,239.07,16.14082772]
[1732719755192,2.0895,239.21,239.12,2.0902]
[1732719755488,17.34482772,239.22,239.08,4.2391]
[1732719755993,17.34482772,239.22,239.04,1.2197]
[1732719757091,2.94,239.21,239.04,1.2197]
[1732719757593,2.0896,239.19,239.11,2.0902]
[1732719757786,2.94,239.21,239.11,2.0902]
[1732719758389,2.94,239.21,239.04,1.2197]
[1732719758994,2.0898,239.17,239.1,2.0903]
[1732719759296,2.94,239.21,239.04,1.2197]
[1732719760391,2.94,239.21,239.07,2.0906]
[1732719760590,2.94,239.21,239.04,1.2197]
[1732719760991,2.94,239.21,239.09,2.0905]
[1732719761999,2.0897,239.18,239.09,2.0905]
[1732719762195,2.94,239.21,239.09,2.0905]
[1732719762393,16.14082772,239.18,239.07,2.0906]
[1732719762598,1.2633,239.17,239.07,2.0906]
[1732719762996,2.09,239.14,239.07,2.0906]
[1732719763194,1.2633,239.17,239.07,2.0906]
[1732719763396,1.2633,239.17,239.04,1.2197]
[1732719764101,3.3532,239.17,239.04,1.2197]
[1732719764497,2.0899,239.17,239.04,1.2197]
[1732719764800,2.0899,239.16,239.04,1.2197]
[1732719765300,2.09,239.15,239.04,1.2197]
[1732719765499,16.14082772,239.18,239.04,1.2197]
[1732719765897,2.09,239.15,239.04,1.2197]
[1732719766299,2.09,239.15,239.08,2.0905]
[1732719766500,2.09,239.15,239.04,1.2197]
[1732719766700,2.09,239.14,239.04,1.2197]
[1732719766902,2.94,239.21,239.04,1.2197]
[1732719767302,2.0897,239.18,239.04,1.2197]
[1732719767698,4.124,239.22,239.07,16.14082772]
[1732719767699,1.204,239.22,239.07,16.14082772]
[1732719767894,1.204,239.22,239.08,2.92]
[1732719768193,1.204,239.22,239.12,2.0902]
[1732719768505,1.204,239.22,239.08,2.92]
[1732719768899,2.0895,239.21,239.08,2.92]
[1732719769098,1.204,239.22,239.08,2.92]
[1732719769505,2.0896,239.2,239.14,2.09]
[1732719769706,1.204,239.22,239.08,2.92]
[1732719770204,2.0895,239.21,239.08,2.92]
[1732719771509,11.27483056,239.22,239.09,10.07083056]
[1732719771510,2.0894,239.22,239.09,10.07083056]
[1732719771704,11.26183056,239.25,239.09,11.34593056]
[1732719771902,10.07083056,239.22,239.09,1.2751]
[1732719772103,2.0895,239.21,239.09,1.2751]
[1732719772502,10.07083056,239.22,239.14,2.09]
[1732719772703,12.16013056,239.22,239.09,12.64603056]
[1732719772905,10.07083056,239.22,239.09,12.64603056]
[1732719773116,10.07083056,239.22,239.12,2.0901]
[1732719773304,2.0897,239.19,239.09,1.2751]
[1732719774012,2.0897,239.19,239.13,2.0901]
[1732719774203,12.16023056,239.22,239.09,1.2751]
[1732719774610,2.0895,239.21,239.12,2.0901]
[1732719774803,2.0895,239.21,239.09,1.2751]
[1732719775012,10.07083056,239.22,239.08,2.92]
[1732719775514,10.07083056,239.19,239.08,2.92]
[1732719775908,10.07083056,239.19,239.08,2.0905]
[1732719776105,10.07083056,239.16,239.05,2.92]
[1732719776409,10.07083056,239.13,239.04,4.1397]
[1732719776610,10.07083056,239.13,239.06,2.0907]
[1732719776805,10.07083056,239.13,239.04,4.1397]
[1732719777010,10.07083056,239.13,239.07,2.0906]
[1732719778512,10.07083056,239.13,239.04,1.2197]
[1732719778713,10.07083056,239.16,239.04,1.2197]
[1732719779020,10.07083056,239.19,239.04,1.2197]
[1732719779218,12.16043056,239.19,239.12,2.0902]
[1732719779615,10.07083056,239.19,239.04,1.2197]
[1732719779812,2.0898,239.17,239.11,2.0903]
[1732719780614,2.0898,239.17,239.04,1.2197]
[1732719781321,10.07083056,239.16,239.04,1.2197]
[1732719781515,10.07083056,239.13,239.04,1.2197]
[1732719781912,4.6478,239.15,239.04,1.2197]
[1732719782218,4.6478,239.15,238.96,2.54973845]
[1732719782219,10.07083056,239.1,238.96,2.54973845]
[1732719782413,10.07083056,239.07,238.97,4.1476]
[1732719782618,10.07083056,239.04,238.93,2.55588333]
[1732719782814,10.07083056,239.01,238.9,1.3142]
[1732719783723,11.37783056,239.04,238.9,1.3142]
[1732719784123,11.37783056,239.04,238.99,2.35054]
[1732719784325,2.92,239.05,238.99,0.25924]
[1732719784826,10.07083056,239.07,239.01,2.0912]
[1732719785124,12.99083056,239.1,238.99,0.25924]
[1732719785322,1.278,239.13,239.06,2.0907]
[1732719785622,1.2508,239.15,239.04,12.99083056]
[1732719785818,3.3676,239.19,239.12,2.0902]
[1732719786326,1.278,239.19,239.1,10.07083056]
[1732719786524,1.278,239.19,239.1,2.0903]
[1732719786826,1.278,239.19,239.06,2.92]
[1732719787229,2.0899,239.16,239.06,2.92]
[1732719787620,2.09,239.15,239.08,2.0905]
[1732719788224,1.278,239.19,239.06,2.92]
[1732719788525,2.92,239.18,239.02,2.92]
[1732719788726,16.10968171,239.16,239.0,1.3142]
[1732719790026,2.09,239.14,239.07,2.0906]
[1732719790228,2.92,239.18,239.0,1.3142]
[1732719790530,16.10968171,239.16,239.0,1.3142]
[1732719791032,2.0901,239.13,239.06,2.0907]
[1732719791322,16.10968171,239.16,239.0,1.3142]
[1732719791824,16.10968171,239.12,239.0,1.3142]
[1732719792129,1.2353,239.11,239.0,1.3142]
[1732719792324,2.92,239.1,238.99,0.25924]
[1732719792525,16.10968171,239.08,238.99,0.25924]
[1732719792932,2.0907,239.06,239.0,2.0913]
[1732719793728,2.0906,239.08,239.02,2.0911]
[1732719794029,1.2148,239.09,238.99,0.25924]
[1732719796230,16.10968171,239.05,238.89,17.13858619]
[1732719796435,16.10968171,239.05,238.87,5.71286206]
[1732719796825,2.0913,239.0,238.86,2.92]
[1732719797023,2.0913,239.0,238.93,2.0918]
[1732719797631,16.10968171,239.05,238.87,2.92]
[1732719798131,16.10968171,239.05,238.83,1.2568]
[1732719798326,16.10968171,239.05,238.84,20.25638171]
[1732719798530,1.2353,239.11,238.84,20.25638171]
[1732719798531,287.5717859,239.37,238.98,16.10968171]
[1732719798729,0.62551623,239.04,238.99,4.1467]
[1732719798927,0.62551623,239.04,238.99,1.2267]
[1732719799231,2.0902,239.13,238.99,4.1467]
[1732719799431,1.2545,239.12,238.99,4.1467]
[1732719800135,1.2545,239.12,238.96,2.92]
[1732719800638,2.0904,239.1,238.96,2.92]
[1732719801333,1.2545,239.12,238.96,2.92]
[1732719801537,1.3088,239.09,238.96,2.92]
[1732719801737,1.3088,239.09,239.02,2.0911]
[1732719801940,1.3088,239.09,238.96,2.92]
[1732719802439,3.3993,239.09,238.96,2.92]
[1732719802837,3.3993,239.09,239.0,2.0912]
[1732719803038,2.0908,239.06,238.96,2.92]
[1732719803344,1.3088,239.09,238.96,2.92]
[1732719803527,2.0905,239.07,239.0,2.091]
[1732719803732,1.3088,239.09,238.96,2.92]
[1732719804333,2.0904,239.08,238.96,2.92]
[1732719804539,1.3088,239.09,238.96,2.92]
[1732719804742,3.3992,239.09,239.02,2.091]
[1732719804935,1.3088,239.09,238.96,2.92]
[1732719805241,1.2545,239.12,238.96,2.92]
[1732719805539,2.92,239.19,239.01,16.10968171]
[1732719805735,9.19217783,239.18,239.02,1.22]
[1732719805939,2.0897,239.17,239.09,2.0903]
[1732719806532,2.92,239.19,239.09,2.0903]
[1732719806733,2.0898,239.16,239.09,2.0903]
[1732719807735,2.09,239.13,239.06,2.0906]
[1732719807933,2.92,239.19,239.02,4.14]
[1732719808430,1.2477,239.21,239.05,16.10968171]
[1732719808630,26.54378171,239.52,239.02,4.14]
[1732719808631,2.92,239.33,239.13,16.10968171]
[1732719808830,18.96026025,239.32,239.13,19.02968171]
[1732719809136,17.74196025,239.31,239.13,19.02968171]
[1732719809333,17.74193897,239.3,239.09,16.10968171]
[1732719809536,2.0894,239.22,239.09,16.10968171]
[1732719809730,2.92,239.26,239.1,2.92]
[1732719810334,4.2404,239.26,239.1,2.92]
[1732719810637,2.0892,239.24,239.1,2.92]
[1732719811137,2.0892,239.24,239.16,2.0898]
[1732719811332,4.2404,239.26,239.1,2.92]
[1732719811538,4.2404,239.26,239.05,18.66115282]
[1732719811737,4.2404,239.26,239.1,2.0903]
[1732719811738,16.10968171,239.24,239.1,2.0903]
[1732719811935,2.0895,239.2,239.1,2.0903]
[1732719812139,16.10968171,239.24,239.05,19.02968171]
[1732719812536,2.0898,239.17,239.05,19.02968171]
[1732719813039,2.0896,239.19,239.05,19.02968171]
[1732719813641,2.0896,239.19,239.12,2.0902]
[1732719814035,2.92,239.19,239.02,1.22]
[1732719814239,2.92,239.19,239.06,2.0907]
[1732719815037,16.10968171,239.16,239.02,1.22]
[1732719815234,2.5876,239.15,239.02,1.22]
[1732719815638,2.0901,239.14,239.08,2.0905]
[1732719816034,2.5876,239.15,238.98,2.92]
[1732719816737,2.5876,239.15,239.03,2.091]
[1732719816738,2.0901,239.13,239.03,2.091]
[1732719816932,2.5876,239.15,238.98,2.92]
[1732719817840,2.0903,239.12,239.06,2.0907]
[1732719818046,2.5876,239.15,238.98,2.92]
[1732719819346,2.0903,239.11,238.98,2.92]
[1732719820147,2.0903,239.11,239.04,2.0908]
[1732719820642,2.5876,239.15,238.98,2.92]
[1732719820843,9.19704321,239.14,239.02,2.091]
[1732719821048,2.5876,239.15,239.02,2.091]
[1732719821348,17.75770647,239.14,238.97,2.92]
[1732719821543,16.10968171,239.12,239.01,2.0912]
[1732719821747,12.1176324,239.11,238.97,2.92]
[1732719821949,2.0907,239.07,238.97,2.92]
[1732719822141,2.92,239.11,239.01,2.0912]
[1732719822343,2.0907,239.08,239.01,2.0912]
[1732719822647,2.92,239.11,239.01,2.0912]
[1732719822845,2.92,239.11,238.97,2.92]
[1732719823152,2.0906,239.08,239.02,2.0911]
[1732719823645,2.0905,239.09,239.03,2.091]
[1732719823842,2.92,239.11,238.97,2.92]
[1732719824047,2.92,239.14,238.97,2.92]
[1732719825252,2.92,239.14,238.97,5.47666248]
[1732719825454,2.92,239.14,238.97,2.92]
[1732719825652,2.92,239.14,239.02,2.091]
[1732719825854,2.09,239.16,238.98,2.55666248]
[1732719826048,19.02968171,239.2,238.98,2.55666248]
[1732719826254,2.0898,239.17,239.11,2.0903]
[1732719826652,19.02968171,239.2,239.04,2.92]
[1732719826853,2.0899,239.16,239.1,2.0904]
[1732719827059,19.02968171,239.2,239.04,2.92]
[1732719827259,19.02968171,239.2,239.1,2.0904]
[1732719827260,2.0898,239.17,239.1,2.0904]
[1732719827660,2.0898,239.17,239.04,2.92]
[1732719827860,16.10968171,239.24,239.04,2.92]
[1732719828056,9.82039764,239.23,239.05,1.1941]
[1732719828357,2.0897,239.19,239.13,2.0901]